Cogmind - Beta 15 @@@ ROGUE MODE // 2025.10.21 @ 19:28:06 Player: the Result: Destroyed by MY-J7J(R) with Subdweller Machine Gun Performance ------------- Evolutions (0) 0 Regions Visited (2) 400 Robots Destroyed (48) 240 Value Destroyed (1049) 1049 Prototype IDs (14) 280 Alien Tech Used (0) 0 Bonus (0) 0 TOTAL SCORE: 1969 Bonus ------- None Cogmind --------- Core Integrity 0/250 Matter 231/300 Energy 265/265 System Corruption 0% Temperature Cool (0) Movement Treading (160) Location -10/Subcaves Parts ------- > --- POWER (1) -------- Improved Ion Engine > --- PROPULSION (2) --- Light Treads Spiked Treads > --- UTILITY (2) ------ Large Storage Unit Seismic Detector > --- WEAPON (2) ------- Makeshift Shrapnel Gun Battle Cannon > --- INVENTORY (15) --- Improved Ion Engine Wheel Flightbrick Cooling System Huge Storage Unit Light Armor Plating Hacking Suite Battle Rifle Light Cannon Datajack Shrapnel Trap Peak State ------------ > --- POWER ------------ Improved Ion Engine > --- PROPULSION ------- Light Treads Spiked Treads > --- UTILITY ---------- Large Storage Unit Seismic Detector > --- WEAPON ----------- Makeshift Shrapnel Gun Battle Cannon > --- INVENTORY -------- Improved Ion Engine Wheel Flightbrick Cooling System Huge Storage Unit Light Armor Plating Hacking Suite Subdweller Beam Cannon Battle Rifle Light Cannon Datajack Shrapnel Trap [Rating: 18] Favorites ----------- Power Improved Ion Engine Engine Improved Ion Engine Propulsion Light Treads Treads Light Treads Wheel Wheel Utility Large Storage Unit Device Seismic Detector Storage Large Storage Unit Protection Light Armor Plating Weapon Light Cannon Energy Gun Riot Gun Energy Cannon Subdweller Beam Cannon Ballistic Gun Battle Rifle Ballistic Cannon Light Cannon Build | -11 -10 -10 ------- Run | Yrd Mat Sub Slots Evolved . | . . . Power . | . . . Propulsion . | . . . Utility . | . . . Weapon . | . . . Parts Attached 31 | 9 5 17 Power 3 | 1 1 1 Engine 3 | 1 1 1 Core . | . . . Reactor . | . . . Propulsion 7 | 2 . 5 Treads 6 | 2 . 4 Leg . | . . . Wheel 1 | . . 1 Hover . | . . . Flight . | . . . Utility 9 | 4 1 4 Device 2 | 2 . . Storage 4 | 2 1 1 Processor . | . . . Hackware . | . . . Protection 3 | . . 3 Artifact . | . . . Weapon 12 | 2 3 7 Energy Gun 3 | 1 . 2 Energy Cannon 1 | . . 1 Ballistic Gun 5 | 1 1 3 Ballistic Cannon 3 | . 2 1 Launcher . | . . . Special Weapon . | . . . Impact Weapon . | . . . Slashing Weapon . | . . . Piercing Weapon . | . . . Special Melee Weapon . | . . . Unidentified Prototypes . | . . . Parts Lost 2 | . . 2 Power . | . . . Propulsion 1 | . . 1 Utility 1 | . . 1 Weapon . | . . . Highest Loss Streak 2 | . . 2 To Critical Strikes . | . . . Average Backups 12 | 1 13 12 Power 1 | . 2 1 Propulsion 2 | . 2 2 Utility 3 | . 4 3 Weapon 3 | . 3 3 Tool/Special . | . . . Unused Backups 17 | 1 6 10 Power 3 | . 2 1 Propulsion 2 | . 1 1 Utility 5 | . 2 3 Weapon 5 | 1 1 3 Tool/Special 2 | . . 2 Average Slot Usage (%) 98 | . 100 97 Engine 14 | . 14 14 Treads 26 | . 28 26 Wheel 1 | . . 1 Device 9 | . 14 7 Storage 13 | . 14 12 Protection 4 | . . 6 Energy Gun 1 | . 1 1 Energy Cannon 1 | . . 1 Ballistic Gun 4 | . 1 6 Ballistic Cannon 20 | . 25 18 Peak Build Rating 18 | 7 10 18 Average Rating 10 | 4 9 11 On Entrance 5 | . 7 10 Naked Turns . | . . . Heaviest Build 94 | 12 34 94 Greatest Support 40 | 40 40 40 Greatest Overweight (x) 9 | . . 9 Average Overweight (x) . | . . . Largest Inventory Capacity 25 | 8 15 25 Average Capacity 14 | 5 13 15 Most Carried 19 | 5 15 19 Average Carried 12 | 1 13 13 Final Capacity 15 | 8 15 15 Final Carried 15 | 5 15 14 Class Distribution -------------------- 100% | Mutant Dominant Class ---------------- Mutant | -10/Materials Mutant | -10/Subcaves Resources | -11 -10 -10 ----------- Run | Yrd Mat Sub Matter Collected 1495 | 273 394 828 Remotely . | . . . Salvage Created 1315 | 182 619 514 Parts 98 | 13 47 38 Haulers Intercepted 2 | . 2 . Recyclers Shooed 1 | . 1 . Parts Field Recycled . | . . . Retrieved Matter . | . . . Parts Self-Destructed 13 | . . 13 Prevented . | . . . Kills | -11 -10 -10 ------- Run | Yrd Mat Sub Combat Hostiles Destroyed 28 | . 12 16 Guns 8 | . 3 5 Cannons 20 | . 9 11 Classes Destroyed 11 | 2 7 2 Worker 1 | . 1 . Tunneler 5 | 5 . . Hauler 2 | . 2 . Recycler 6 | 1 5 . Operator 2 | . 2 . Turret 2 | . . 2 Watcher 2 | . 2 . Swarmer 8 | . 6 2 Grunt 6 | . 5 1 Sentry 1 | . . 1 Subdweller 13 | . 1 12 Best Kill Streak 7 | 4 7 3 Combat Bots Only 3 | . 3 3 Max Kills in Single Turn 2 | 1 2 1 Gunslinging . | . . . Exploded . | . . . Melee . | . . . Uniques/NPCs Destroyed . | . . . Combat | -11 -10 -10 -------- Run | Yrd Mat Sub Hostile Shots Fired 146 | . 50 96 Missed 45 | . 17 28 Hits 101 | . 33 68 Projectile 101 | . 33 68 AOE 3 | . . 3 Critical Strikes 1 | . . 1 Damage Taken 1615 | . 322 1293 Core 269 | . 54 215 Absorbed by Shields . | . . . Core Remaining (%) 100 | 100 . . Volleys Fired 177 | 15 47 115 Largest 2 | 2 2 2 Hottest 113 | 70 70 113 Shots Fired 293 | 30 94 169 Gun 107 | 30 20 57 Cannon 186 | . 74 112 Launcher . | . . . Special . | . . . Kinetic 250 | 15 84 151 Thermal 35 | 15 10 10 Explosive . | . . . Electromagnetic 8 | . . 8 Robot Hit Streak 22 | 8 8 22 Robot Miss Streak 3 | 1 3 2 Penetration Max . | . . . Secondary Targets . | . . . Shots Hit Robots 186 | 22 49 115 Core Hits 70 | 10 24 36 Critical Kills . | . . . Critical Parts Destroyed . | . . . Critical Strikes 11 | 1 5 5 Burn 1 | 1 . . Blast 10 | . 5 5 Melee Attacks . | . . . Impact . | . . . Slashing . | . . . Piercing . | . . . Sneak Attacks . | . . . Combat Hostiles . | . . . Follow-up Attacks . | . . . Damage Inflicted 3204 | 240 888 2076 Guns 718 | 235 82 401 Cannons 2450 | . 775 1675 Explosions . | . . . Melee . | . . . Ramming 36 | 5 31 . Kinetic 2806 | 86 832 1888 Thermal 280 | 149 25 106 Explosive . | . . . Electromagnetic 82 | . . 82 Impact . | . . . Slashing . | . . . Piercing . | . . . Highest Corruption . | . . . Average Corruption . | . . . Corruption Purged . | . . . Corruption Blocked . | . . . Overload Shots . | . . . Overflow Damage 7 | . 2 5 Projectiles 5 | . . 5 Explosions . | . . . Melee 2 | . 2 . Knockbacks 17 | . 2 15 Impact . | . . . Kinetic 17 | . 2 15 Secondary . | . . . Self-Inflicted Damage . | . . . Shots . | . . . Rammed 5 | 1 4 . Targets Rammed 5 | 1 4 . Kicked . | . . . Crushed . | . . . Highest Temperature 140 | 40 140 4 Average Temperature 24 | 19 26 2 Received Heat Transfer 225 | . 48 177 Siege Activations . | . . . Martial Activations . | . . . Shielding Activations . | . . . Robots Disrupted . | . . . Combat Hostiles . | . . . Robots Corrupted 1 | . 1 . Combat Hostiles . | . . . Parts Fried 2 | . 2 . Impact Corruptions 1 | . 1 . Robots Melted . | . . . Combat Hostiles . | . . . Parts Melted . | . . . Heat Transferred 740 | 518 74 148 Parts Sabotaged . | . . . Parts Stolen . | . . . Parts Stripped . | . . . Power Chain Reactions . | . . . Alert | -11 -10 -10 ------- Run | Yrd Mat Sub Maximum Alert Level . | . . . Low Security (%) 100 | 100 100 . Level 1 . | . . . Level 2 . | . . . Level 3 . | . . . Level 4 . | . . . Level 5 . | . . . High Security . | . . . Max Security . | . . . Peak Influence 125 | 15 125 . Initial . | . . . Average 19 | 2 20 . Influence Increases 780 | 30 360 390 Destroy 0b10 Robot/C 340 | . 220 120 Destroy 0b10 Robot/NC 90 | 30 60 . Destroy Leader 48 | . 48 . Successful Hack 30 | . 30 . Destroy Structure 2 | . 2 . Lose Combat Pursuer 270 | . . 270 Influence Decreases 693 | 30 360 303 Time Decay 673 | 30 360 283 Lost Part 20 | . . 20 Squads Dispatched 3 | . 3 . Investigation 1 | . 1 . Extermination . | . . . Reinforcement 2 | . 2 . Assault . | . . . Garrison . | . . . Intercept . | . . . Searches Triggered . | . . . Construction Impeded . | . . . Haulers Reinforced . | . . . Active Scanning Responses . | . . . Cargo Convoy Interrupts . | . . . Stealth | -11 -10 -10 --------- Run | Yrd Mat Sub Distress Signals 1 | . 1 . Communications Jammed . | . . . Distress Signals . | . . . Times Spotted 41 | . 17 24 Peak Tracking Total 4 | . 3 4 Tactical Retreats 5 | . . 5 Traps | -11 -10 -10 ------- Run | Yrd Mat Sub Traps Triggered 3 | . 2 1 Indirectly . | . . . Trap Hack Attempts . | . . . Triggered . | . . . Disarmed . | . . . Reprogrammed . | . . . Reused 1 | . . 1 Traps Extracted . | . . . Installed 1 | . . 1 Triggered . | . . . Most Traps Carried 1 | . . 1 Machines | -11 -10 -10 ---------- Run | Yrd Mat Sub Machines Disabled 1 | . . 1 Max in Single Turn 1 | . . 1 Machines Repaired . | . . . Machines Dismantled . | . . . Machines Sabotaged . | . . . Overloaded Fab Kills . | . . . Hacking | -11 -10 -10 --------- Run | Yrd Mat Sub Machines Accessed 9 | . 8 1 Terminals 5 | . 5 . Fabricators . | . . . Repair Stations 1 | . 1 . Recycling Units 2 | . 2 . Scanalyzers . | . . . Garrison Access . | . . . Total Hacks 21 | . 20 1 Successful 10 | . 9 1 Failed 10 | . 10 . Catastrophic . | . . . Database Lockouts 1 | . 1 . Manual 10 | . 10 . Terminals 15 | . 15 . Fabricators . | . . . Repair Stations 2 | . 2 . Recycling Units 3 | . 3 . Scanalyzers . | . . . Garrison Access . | . . . Terminal Hacks 6 | . 5 1 Part Schematic 1 | . 1 . Robot Analysis 1 | . 1 . Prototype ID Bank 2 | . 2 . Locate Traps 1 | . 1 . Proto ID Catalog 1 | . . 1 Fabricator Hacks . | . . . Repair Station Hacks 1 | . 1 . Scan Component 1 | . 1 . Recycling Unit Hacks 2 | . 2 . Retrieve Components 2 | . 2 . Scanalyzer . | . . . Garrison Access Hacks . | . . . Unauthorized Hacks 1 | . 1 . Terminals 1 | . 1 . Botnet 1 | . 1 . Fabricators . | . . . Repair Stations . | . . . Recycling Units . | . . . Scanalyzers . | . . . Garrison Access . | . . . Data Cores Recovered . | . . . Used . | . . . Hacking Detections 7 | . 7 . Full Trace Events . | . . . Feedback Events . | . . . Feedback Blocked . | . . . Robot Schematics Acquired . | . . . Robots Built . | . . . Authchips . | . . . Time . | . . . Total Robot Build Rating . | . . . Part Schematics Acquired 1 | . 1 . Parts Built . | . . . Authchips . | . . . Time . | . . . Total Part Build Rating . | . . . Parts Repaired . | . . . Time . | . . . Parts Recycled . | . . . Recycled Matter . | . . . Retrieved Matter . | . . . Retrieved Components 19 | . 19 . Parts Scanalyzed . | . . . Part Schematics Acquired . | . . . Parts Damaged . | . . . Bothacking | -11 -10 -10 ------------ Run | Yrd Mat Sub Used RIF Installer . | . . . Robots Hacked . | . . . Non-combat . | . . . Combat . | . . . Robot Hacks Applied . | . . . Relay Couplers Released . | . . . Fabnet Peak Effective % . | . . . Robots Rewired . | . . . Allies Hacked . | . . . Hacks Repelled . | . . . Allies | -11 -10 -10 -------- Run | Yrd Mat Sub Total Allies . | . . . Largest Group . | . . . Highest-Rated Group . | . . . Highest-Rated Ally . | . . . Total Orders . | . . . Ally Attacks . | . . . Total Damage . | . . . Kills . | . . . Allies Corrupted . | . . . Allies Melted . | . . . Intel | -11 -10 -10 ------- Run | Yrd Mat Sub Active Infowar (turns) 4167 | 91 2026 2050 Seismic 4167 | 91 2026 2050 Robot Analysis Total 1 | . 1 . Derelict Logs Recovered 1 | . . 1 Drone Launches . | . . . Drone Recoveries . | . . . Exploration | -11 -10 -10 ------------- Run | Yrd Mat Sub Turns Passed 6265 | 186 2026 4053 Spaces Moved 2941 | 78 1149 1714 Core 3 | 3 . . Treads 2836 | 75 1149 1612 Legs . | . . . Wheels 102 | . . 102 Hover . | . . . Flight . | . . . Fastest Speed 50 | 50 160 160 Average Speed 161 | 155 160 163 Slowest Speed 480 | 160 160 480 Overloaded Moves . | . . . Propulsion Burnouts . | . . . Robots Hopped . | . . . Potential Cave-ins . | . . . Cave-ins Triggered . | . . . Exploration Rate (%) 57 | 4 99 69 Regions Visited 2 Branch Regions 1 Pre-discovered Areas 1 | . . 1 Known Exits Taken . | . . . Unknown Exits Taken 2 | 1 1 . Scrap Searched 8 | . . 8 Spaces Dug 2 | . . 2 Terrain Destroyed 4 | . . 4 Melee . | . . . Projectile 4 | . . 4 AOE . | . . . Terrain Rammed . | . . . Walls Destroyed . | . . . Machines Disabled . | . . . Actions | -11 -10 -10 --------- Run | Yrd Mat Sub Total 4168 | 112 1250 2806 Wait 892 | 2 10 880 Move 2939 | 77 1148 1714 Hop . | . . . Pick Up 54 | 5 21 28 Fast Attach 9 | 8 . 1 Attach 5 | . . 5 Detach 1 | 1 . . Swap 33 | 1 6 26 Drop 50 | 2 14 34 Fire 177 | 15 47 115 Melee . | . . . Ram . | . . . Kick . | . . . Crush 5 | 1 4 . Escape Stasis . | . . . Rewire . | . . . Trap 1 | . . 1 Miscellaneous 2 | . . 2 Route ------- -11/Scrapyard -10/Materials (discovered 5 exits: [*Mat x3] / [*Min] / *Sub) -10/Subcaves (discovered 2 exits: [*Mat] / [*Rec]) History --------- Turn | Location | Event 24 | -11/Scrapyard | Discovered new exit (range 12) 187 | -11/Scrapyard | Entered Materials 301 | -10/Materials | Build established: Mutant 565 | -10/Materials | Central database locked down 637 | -10/Materials | Discovered new exit (range 16) 787 | -10/Materials | Derelicts attacked the area 921 | -10/Materials | Discovered new exit (range 12) 1106 | -10/Materials | Discovered new exit (range 12) 1546 | -10/Materials | Discovered new exit (range 16) 2197 | -10/Materials | Discovered new exit (range 10) 2213 | -10/Materials | Entered Subcaves 3248 | -10/Subcaves | Discovered new exit (range 11) 3399 | -10/Subcaves | Discovered new exit (range 14) 3582 | -10/Subcaves | Core integrity fell below 50% 4054 | -10/Subcaves | Learned location of Zion (-7) 4054 | -10/Subcaves | Met a Zionite searching for "candidates" 5226 | -10/Subcaves | A swath of the cavern ceiling suddenly collapsed 5494 | -10/Subcaves | Disturbed a concealed Subdweller 5498 | -10/Subcaves | Core integrity fell below 20% 5505 | -10/Subcaves | Disturbed a concealed Subdweller 5733 | -10/Subcaves | Visited 4L-MR0's lab 5752 | -10/Subcaves | Found Flightbrick 6031 | -10/Subcaves | A swath of the cavern ceiling suddenly collapsed 6266 | -10/Subcaves | Destroyed by MY-J7J(R) with Subdweller Machine Gun Last Messages --------------- 05854_ VI-PVZ(R) Disposable Heat Sink blasted off. 05854_ VI-PVZ(R) destroyed. 05857_ Subatomizers dissect the Disposable Heat Sink. 05861_ Acquired 2 matter. 05862_ Acquired 44 matter. 05881_ Subatomizers dissect the Disposable Heat Sink. 05886_ L8-57G(R) destroyed. 05888_ Acquired 7 matter. 05912_ L0-XWX(R) knocked back. 05920_ L0-XWX(R) destroyed. 06018_ Sub. Beam Cannon shoots sparks and powers down. 06020_ JM-HN1(R) destroyed. 06021_ Acquired 19 matter. 06027_ Dropped Broken Sub. Beam Cannon. A swath of the cavern ceiling suddenly collapses. Map ----- +----------------------------------------------------+ | ?????????????????????????????????????????????????? | | ?????????????????????????????????????????????????# | | ????????????????????????????????????????????????## | | ????????????????????????????????????????????????# | | ?????????????????????????????????????????????????# | | ?????????????????????????????????????????????????? | | ?????????????????????????????????????????????????? | | ?????????????????????????????????????????????????? | | ?????????????????????????????????????????????????? | | ?????????????????????????????????????????????????? | | ?????????????????????????????????????????????????? | | ?????????????????????????????????????????????????? | | ?????????????????????????????????????????????????? | | ??????????? ????????????????????????????????????? | | ?????????? ????????????????????????????????????? | | ??????????# ????????????????????????????????????? | | ?????????## ????????????????????????????????????? | | ????????? ????????????????????????????????????? | | ?????????? ##??????????????????????????????????? | | ?????????? #??????????????????????????????????? | | ?????????? #??????????????????????????????????? | | ??????????# ##??????????????#??????????????????? | | ?????????## #????????????? #??????????????????? | | ?????????? ?????????????? ???????????????????? | | ??????????# ##????????###? #???????????????????? | | ??????????# #??????###@## ##?? #######????????? | | ####??????## ######### < "# ???????? | | #####??# ## # ## R ???????? | | ## #### % ???????? | | ###### # ???????? | | #????####### ### ???????? | | ######## ## #??????????###### #???? ?????????? | | ##??????#######????????????????##????????????????? | | #????????????????????????????????????????????????? | | ##???????????????????????????????????????????????? | | #???????????????????????????????????????????????? | | #???????????????????????????????????????????????? | | ##??????????????????????????????????????????????? | | ##?????????????????????????????????????????????? | | ##????????????????????????????????????????????? | | #????????????????????????????????????????????? | | "" #????????????????????????????????????????????? | | """#????????????????????????????????????????????? | | ## "#????????????????????????????????????????????? | | ?? #????????????????????????????????????????????? | | #?? #????????????????????????????????????????????? | | #??##???##?????????###???????????????????????????? | | ###?????#"????????## #???????????????????????????? | | #"###???#"###?????# #???????????????????????????? | | # #####"""##????# #???????????????????????????? | +----------------------------------------------------+ Best States ------------- Heat Dissipation 25 Energy Generation 12 Energy Capacity 265 Matter Stores 300 Matter Capacity 300 Sight Range 16 Terrain Scan Density 10 Armor Coverage 800 Evasion (%) 40 Recoil Reduction 2 Item Schematics ----------------- Hcp. Storage Unit | -10/Materials | Hacked Robot Schematics ------------------ None Fabricated ------------ Nothing Repaired ---------- Nothing Alien Tech Used ----------------- None Achievements -------------- None Challenges ------------ None Game ------ Seed ThiefTowerMiniperforator Manual? 0 Play Time 00:32:38 Cumulative 374.8 hours Start 2025.10.21 @ 18:55:36 End 2025.10.21 @ 19:28:06 Sessions 1 Manual Loads 0 Difficulty Rogue Special Mode None Game No. 251 Rogue 251 Adventurer 0 Explorer 0 Win Type - Total 5 Types 3/0/1/0/0/0/0/1/0/0 Lore% 78 Gallery% 79 Achievement% 71 Wizard Run 0 Options --------- Layout 1 ASCII 0 Keyboard 0 Movement Numpad Keybinds 0 Fullscreen 1 Font 24/Smallcaps Map View 50x40 Zoom Use 0% Tactical HUD 1 Map Filters NONE Filters NONE Steam 1 RUN: 4082c4da-635f-41a1-83fe-97e721af551c